[Event "EYTCC U12 Girls 2019"]
[Site "Pardubice"]
[Date "2019.07.11"]
[Round "1.17"]
[White "Zhou, Lepu Coco"]
[Black "Mellor, Jessica"]
[Result "1-0"]
[ECO "C67"]
[WhiteElo "1861"]
[BlackElo "1663"]
[Annotator "NA"]
[PlyCount "111"]
[EventDate "2019.07.11"]
[EventType "swiss"]
[EventCountry "CZE"]
[SourceTitle "playchess.com"]
[Source "ChessBase"]
[SourceQuality "1"]
[WhiteTeam "Germany"]
[BlackTeam "England"]
[WhiteTeamCountry "GER"]
[BlackTeamCountry "ENG"]
[TimeControl "40/5400+30:1800+30"]

1. e4 {[%emt 0:00:00]} e5 {[%emt 0:00:00]} 2. Nf3 {[%emt 0:00:00]} Nc6 {[%emt 0:00:00]} 3. Bb5 {[%emt 0:00:00]} Nf6 {[%emt 0:00:23]} 4. O-O {[%emt 0:00:07]} Nxe4 {[%emt 0:00:30]} 5. d4 {[%emt 0:00:20]} Nd6 {[%emt 0:00:48]} 6. Bxc6 {[%emt 0:00:26]} dxc6 {[%emt 0:00:56]} 7. dxe5 {[%emt 0:00:16]} Nf5 {[%emt 0:00:31]} 8. Qxd8+ {[%emt 0:00:14]} Kxd8 {[%emt 0:00:19]} 9. Nc3 {[%emt 0:00:25]} Be7 {[%emt 0:07:15]} 10. Bf4 {[%emt 0:01:22]} Be6 {[%emt 0:05:36]} 11. Rad1+ {[%emt 0:02:40]} Ke8 {[%emt 0:02:28]} 12. Rd2 {[%emt 0:02:47]} Rd8 {[%emt 0:04:54]} 13. Rxd8+ {[%emt 0:03:32]} Kxd8 {[%emt 0:02:58]} 14. Rd1+ {[%emt 0:02:11]} Kc8 {[%emt 0:02:28]} 15. Ng5 {[%emt 0:01:30]} Bxg5 {[%emt 0:06:39]} 16. Bxg5 {[%emt 0:00:13]} h6 {[%emt 0:00:38]} 17. Bc1 {[%emt 0:01:47]} Rd8 {[%emt 0:05:24]} 18. Rxd8+ {[%emt 0:00:30]} Kxd8 {[%emt 0:00:06]} 19. b3 {[%emt 0:08:40]} Nd4 {[%emt 0:08:04]} 20. h3 {[%emt 0:00:38]} Nxc2 {[%emt 0:07:01]} 21. g4 {[%emt 0:00:23]} h5 {[%emt 0:03:24]} 22. f3 {[%emt 0:01:30]} hxg4 {[%emt 0:03:50]} 23. hxg4 {[%emt 0:00:51]} Nd4 {[%emt 0:04:07]} 24. Kg2 {[%emt 0:02:06]} Bd5 {[%emt 0:03:50]} 25. Be3 {[%emt 0:06:16]} Ne6 {[%emt 0:07:30]} 26. Kg3 {[%emt 0:00:30]} Kd7 {[%emt 0:01:53]} 27. f4 {[%emt 0:00:35]} g6 {[%emt 0:01:28]} 28. f5 {[%emt 0:01:06]} gxf5 {[%emt 0:00:43]} 29. gxf5 {[%emt 0:00:10]} Ng7 {[%emt 0:01:04]} 30. Kg4 {[%emt 0:00:19]} Ne8 {[%emt 0:01:02]} 31. Kg5 {[%emt 0:01:05]} b6 {[%emt 0:02:35]} 32. b4 {[%emt 0:01:39]} Ke7 {[%emt 0:04:17]} 33. Kh6 {[%emt 0:01:56]} f6 {[%emt 0:06:21]} 34. e6 {[%emt 0:01:16]} Nd6 {[%emt 0:01:04]} 35. Kg6 {[%emt 0:00:30]} Be4 {[%emt 0:05:14]} 36. Nxe4 {[%emt 0:01:22]} Nxe4 {[%emt 0:00:22]} 37. Bf4 {[%emt 0:02:24]} c5 {[%emt 0:01:30]} 38. bxc5 {[%emt 0:01:18]} bxc5 {[%emt 0:00:22]} 39. Bxc7 {[%emt 0:00:46]} c4 {[%emt 0:00:33]} 40. Bf4 {[%emt 0:01:11]} c3 {[%emt 0:00:17]} 41. Bc1 {[%emt 0:34:06]} c2 {[%emt 0:30:54]} 42. Bb2 {[%emt 0:00:40]} a6 {[%emt 0:00:00]} 43. a4 {[%emt 0:00:00]} a5 {[%emt 0:00:00]} 44. Bc1 {[%emt 0:00:00]} Kf8 {[%emt 0:00:00]} 45. Ba3+ {[%emt 0:00:00]} Ke8 {[%emt 0:00:00]} 46. Kg7 {[%emt 0:00:00]} Nc5 {[%emt 0:00:00]} 47. Kxf6 {[%emt 0:00:00]} Nxa4 {[%emt 0:00:00]} 48. Ke5 {[%emt 0:00:00]} Nc5 {[%emt 0:00:00]} 49. f6 {[%emt 0:00:00]} Nd7+ {[%emt 0:04:19]} 50. exd7+ {[%emt 0:00:00]} Kxd7 {[%emt 0:00:07]} 51. Kd5 {[%emt 0:00:00]} a4 {[%emt 0:00:50]} 52. Ke5 {[%emt 0:00:00]} Ke8 {[%emt 0:00:43]} 53. Ke6 {[%emt 0:00:00]} c1=Q {[%emt 0:00:25]} 54. f7+ {[%emt 0:00:00]} Kd8 {[%emt 0:00:15]} 55. f8=Q+ {[%emt 0:00:00]} Kc7 {[%emt 0:00:13]} 56. Bxc1 1-0

[Event "EYTCC U12 Girls 2019"]
[Site "Pardubice"]
[Date "2019.07.11"]
[Round "1.18"]
[White "Pert, Nina"]
[Black "Braeutigam, Katerina"]
[Result "0-1"]
[ECO "B19"]
[WhiteElo "1452"]
[BlackElo "1837"]
[Annotator "NA"]
[PlyCount "102"]
[EventDate "2019.07.11"]
[EventType "swiss"]
[EventCountry "CZE"]
[SourceTitle "playchess.com"]
[Source "ChessBase"]
[SourceQuality "1"]
[WhiteTeam "England"]
[BlackTeam "Germany"]
[WhiteTeamCountry "ENG"]
[BlackTeamCountry "GER"]
[TimeControl "40/5400+30:1800+30"]

1. e4 {[%emt 0:00:00]} c6 {[%emt 0:00:00]} 2. d4 {[%emt 0:00:10]} d5 {[%emt 0:00:00]} 3. Nc3 {[%emt 0:00:29]} dxe4 {[%emt 0:00:00]} 4. Nxe4 {[%emt 0:00:35]} Bf5 {[%emt 0:00:10]} 5. Ng3 {[%emt 0:00:59]} Bg6 {[%emt 0:00:17]} 6. h4 {[%emt 0:00:51]} h6 {[%emt 0:00:13]} 7. Nf3 {[%emt 0:00:44]} Nd7 {[%emt 0:00:16]} 8. h5 {[%emt 0:00:42]} Bh7 {[%emt 0:00:18]} 9. Bd3 {[%emt 0:00:54]} Bxd3 {[%emt 0:00:21]} 10. Qxd3 {[%emt 0:00:51]} e6 {[%emt 0:00:38]} 11. Bd2 {[%emt 0:01:00]} Ngf6 {[%emt 0:01:08]} 12. O-O-O {[%emt 0:02:12]} Be7 {[%emt 0:01:05]} 13. Kb1 {[%emt 0:01:43]} O-O {[%emt 0:01:43]} 14. Ne4 {[%emt 0:05:52]} Nxe4 {[%emt 0:01:00]} 15. Qxe4 {[%emt 0:00:14]} Nf6 {[%emt 0:01:06]} 16. Qe2 {[%emt 0:01:30]} Qd5 {[%emt 0:01:19]} 17. g4 {[%emt 0:11:26]} Qe4 {[%emt 0:10:57]} 18. Be3 {[%emt 0:09:24]} Nxg4 {[%emt 0:05:45]} 19. Rdg1 {[%emt 0:04:35]} Nxe3 {[%emt 0:01:57]} 20. fxe3 {[%emt 0:00:14]} Bf6 {[%emt 0:04:51]} 21. Nd2 {[%emt 0:05:56]} Qd5 {[%emt 0:02:15]} 22. e4 {[%emt 0:09:20]} Qxd4 {[%emt 0:02:31]} 23. c3 {[%emt 0:01:08]} Qc5 {[%emt 0:01:41]} 24. Nb3 {[%emt 0:04:06]} Qe5 {[%emt 0:01:51]} 25. Nd2 {[%emt 0:01:09]} Qc7 {[%emt 0:04:28]} 26. Nf3 {[%emt 0:04:38]} e5 {[%emt 0:00:57]} 27. Rh2 {[%emt 0:02:49]} Kh8 {[%emt 0:03:00]} 28. Rhg2 {[%emt 0:02:53]} Rg8 {[%emt 0:03:26]} 29. Rf1 {[%emt 0:05:26]} Qe7 {[%emt 0:05:06]} 30. Qe3 {[%emt 0:05:52]} b6 {[%emt 0:06:55]} 31. Rgf2 {[%emt 0:04:20]} Rad8 {[%emt 0:05:37]} 32. Qe2 {[%emt 0:03:01]} Rd7 {[%emt 0:04:31]} 33. Nh2 {[%emt 0:03:14]} Qe6 {[%emt 0:01:55]} 34. Rf5 {[%emt 0:01:11]} Bg5 {[%emt 0:01:24]} 35. Qe1 {[%emt 0:03:55]} Bf4 {[%emt 0:04:12]} 36. Ng4 {[%emt 0:01:02]} g6 {[%emt 0:10:42]} 37. R5xf4 {[%emt 0:01:22]} exf4 {[%emt 0:00:41]} 38. Rxf4 {[%emt 0:00:23]} g5 {[%emt 0:03:59]} 39. Rf5 {[%emt 0:00:56]} Rgd8 {[%emt 0:00:16]} 40. Ne3 {[%emt 0:01:31]} Qxe4+ {[%emt 0:00:41]} 41. Kc1 {[%emt 0:30:53]} Rd1+ {[%emt 0:31:01]} 42. Qxd1 {[%emt 0:00:39]} Qxe3+ {[%emt 0:00:19]} 43. Kc2 {[%emt 0:00:19]} Qe4+ {[%emt 0:00:16]} 44. Kc1 {[%emt 0:00:31]} Rxd1+ {[%emt 0:00:17]} 45. Kxd1 {[%emt 0:00:14]} Qxf5 {[%emt 0:00:08]} 46. Kd2 {[%emt 0:00:21]} Qe4 {[%emt 0:01:56]} 47. Kc1 {[%emt 0:00:28]} g4 {[%emt 0:00:50]} 48. b3 {[%emt 0:00:10]} Qe2 {[%emt 0:00:09]} 49. a4 {[%emt 0:00:15]} g3 {[%emt 0:00:13]} 50. Kb1 {[%emt 0:00:18]} g2 {[%emt 0:00:06]} 51. b4 {[%emt 0:00:17]} g1=Q# {[%emt 0:00:14]} 0-1

[Event "EYTCC U12 Girls 2019"]
[Site "Pardubice"]
[Date "2019.07.11"]
[Round "1.19"]
[White "Ivanova, Dilyana"]
[Black "Veverkova, Dorota"]
[Result "1-0"]
[ECO "B18"]
[WhiteElo "1734"]
[BlackElo "1348"]
[Annotator "NA"]
[PlyCount "31"]
[EventDate "2019.07.11"]
[EventType "swiss"]
[EventCountry "CZE"]
[SourceTitle "playchess.com"]
[Source "ChessBase"]
[SourceQuality "1"]
[WhiteTeam "Bulgaria"]
[BlackTeam "Czech Republic"]
[WhiteTeamCountry "BUL"]
[BlackTeamCountry "CZE"]
[TimeControl "40/5400+30:1800+30"]

1. e4 {[%emt 0:00:00]} c6 {[%emt 0:00:00]} 2. d4 {[%emt 0:00:00]} d5 {[%emt 0:00:00]} 3. Nd2 {[%emt 0:00:00]} dxe4 {[%emt 0:00:20]} 4. Nxe4 {[%emt 0:00:07]} Bf5 {[%emt 0:00:13]} 5. Ng3 {[%emt 0:00:23]} Bg6 {[%emt 0:00:09]} 6. N1e2 {[%emt 0:00:36]} h6 {[%emt 0:01:53]} 7. Nf4 {[%emt 0:01:01]} Bh7 {[%emt 0:00:22]} 8. Bc4 {[%emt 0:01:37]} Nf6 {[%emt 0:01:28]} 9. O-O {[%emt 0:01:00]} Nbd7 {[%emt 0:03:26]} 10. Re1 {[%emt 0:04:13]} Qc7 {[%emt 0:04:17]} 11. c3 {[%emt 0:07:36]} e6 {[%emt 0:02:11]} 12. Bxe6 {[%emt 0:05:15]} fxe6 {[%emt 0:03:23]} 13. Nxe6 {[%emt 0:00:09]} Qb6 {[%emt 0:04:14]} 14. Nc7+ {[%emt 0:02:13]} Kd8 {[%emt 0:01:18]} 15. Nxa8 {[%emt 0:00:27]} Bd6 {[%emt 0:03:48]} 16. Nxb6 {[%emt 0:00:27]} 1-0

[Event "EYTCC U12 Girls 2019"]
[Site "Pardubice"]
[Date "2019.07.11"]
[Round "1.20"]
[White "Zadrapova, Amalie"]
[Black "Karaivanova, Petya"]
[Result "0-1"]
[ECO "C90"]
[WhiteElo "1248"]
[BlackElo "1792"]
[Annotator "NA"]
[PlyCount "110"]
[EventDate "2019.07.11"]
[EventType "swiss"]
[EventCountry "CZE"]
[SourceTitle "playchess.com"]
[Source "ChessBase"]
[SourceQuality "1"]
[WhiteTeam "Czech Republic"]
[BlackTeam "Bulgaria"]
[WhiteTeamCountry "CZE"]
[BlackTeamCountry "BUL"]
[TimeControl "40/5400+30:1800+30"]

1. e4 {[%emt 0:00:00]} e5 {[%emt 0:00:00]} 2. Nf3 {[%emt 0:00:00]} Nc6 {[%emt 0:00:00]} 3. Bb5 {[%emt 0:00:16]} a6 {[%emt 0:00:00]} 4. Ba4 {[%emt 0:00:14]} Nf6 {[%emt 0:00:24]} 5. d3 {[%emt 0:00:22]} b5 {[%emt 0:01:17]} 6. Bb3 {[%emt 0:00:19]} Be7 {[%emt 0:00:29]} 7. O-O {[%emt 0:01:39]} O-O {[%emt 0:01:33]} 8. c3 {[%emt 0:01:44]} d6 {[%emt 0:03:07]} 9. Re1 {[%emt 0:02:39]} Bg4 {[%emt 0:02:32]} 10. Nbd2 {[%emt 0:02:42]} Na5 {[%emt 0:05:55]} 11. Bc2 {[%emt 0:04:48]} c5 {[%emt 0:02:56]} 12. Nf1 Nc6 {[%emt 0:04:42]} 13. Ng3 {[%emt 0:06:21]} Rc8 {[%emt 0:04:59]} 14. h3 {[%emt 0:03:22]} Bd7 {[%emt 0:00:19]} 15. Be3 {[%emt 0:07:55]} Qc7 {[%emt 0:05:18]} 16. Rc1 {[%emt 0:02:40]} Rfd8 {[%emt 0:07:12]} 17. d4 {[%emt 0:06:21]} Na5 {[%emt 0:05:59]} 18. b3 {[%emt 0:06:26]} Qb8 {[%emt 0:05:34]} 19. d5 {[%emt 0:07:59]} h6 {[%emt 0:02:45]} 20. Qe2 {[%emt 0:04:12]} Rf8 {[%emt 0:04:56]} 21. Rb1 {[%emt 0:06:56]} Qc7 {[%emt 0:04:36]} 22. c4 {[%emt 0:05:28]} Rb8 {[%emt 0:02:37]} 23. Bd3 {[%emt 0:02:53]} b4 {[%emt 0:03:17]} 24. Qb2 {[%emt 0:01:43]} Nb7 {[%emt 0:03:48]} 25. a3 {[%emt 0:01:05]} a5 {[%emt 0:00:50]} 26. a4 {[%emt 0:03:26]} Nh7 {[%emt 0:00:18]} 27. Qd2 {[%emt 0:01:12]} Qd8 {[%emt 0:04:26]} 28. Nh5 {[%emt 0:04:09]} Ng5 {[%emt 0:04:07]} 29. Nxg5 {[%emt 0:01:20]} Bxg5 {[%emt 0:00:05]} 30. Bxg5 {[%emt 0:00:25]} Qxg5 {[%emt 0:00:07]} 31. Qxg5 {[%emt 0:00:12]} hxg5 {[%emt 0:00:04]} 32. Kh2 {[%emt 0:00:51]} f6 {[%emt 0:00:54]} 33. Ng3 {[%emt 0:00:57]} g6 {[%emt 0:00:32]} 34. Ne2 {[%emt 0:01:20]} Kg7 {[%emt 0:00:19]} 35. g3 {[%emt 0:00:15]} Rh8 {[%emt 0:00:28]} 36. Ng1 {[%emt 0:00:31]} g4 {[%emt 0:01:37]} 37. Bf1 {[%emt 0:01:30]} g5 {[%emt 0:02:54]} 38. f3 {[%emt 0:02:05]} gxh3 {[%emt 0:04:23]} 39. Bxh3 {[%emt 0:00:40]} f5 {[%emt 0:01:33]} 40. exf5 {[%emt 0:01:18]} Bxf5 {[%emt 0:00:09]} 41. Rbc1 {[%emt 0:30:25]} Rbf8 {[%emt 0:33:11]} 42. Kg2 {[%emt 0:00:47]} Bg6 {[%emt 0:00:43]} 43. Be6 {[%emt 0:02:51]} Nd8 {[%emt 0:00:34]} 44. Bg4 {[%emt 0:01:48]} Nf7 {[%emt 0:01:42]} 45. Nh3 {[%emt 0:01:02]} Kf6 {[%emt 0:02:23]} 46. f4 {[%emt 0:01:25]} gxf4 {[%emt 0:01:49]} 47. gxf4 {[%emt 0:00:39]} Rfg8 {[%emt 0:01:40]} 48. Kf2 {[%emt 0:03:44]} Rh4 {[%emt 0:01:15]} 49. fxe5+ {[%emt 0:01:50]} Nxe5 {[%emt 0:00:13]} 50. Be6 {[%emt 0:00:00]} Rg7 {[%emt 0:00:00]} 51. Kg3 {[%emt 0:00:00]} Bf5+ {[%emt 0:00:00]} 52. Ng5 {[%emt 0:00:00]} Rxg5+ {[%emt 0:00:00]} 53. Kf2 {[%emt 0:00:00]} Rh2+ {[%emt 0:00:00]} 54. Ke3 {[%emt 0:00:00]} Rg3+ {[%emt 0:00:00]} 55. Kf4 {[%emt 0:00:00]} Rf3# {[%emt 0:00:00]} 0-1

[Event "EYTCC U12 Girls 2019"]
[Site "Pardubice"]
[Date "2019.07.11"]
[Round "1.21"]
[White "Siekanska, Maria"]
[Black "Havelkova, Beata"]
[Result "1-0"]
[ECO "D35"]
[WhiteElo "1561"]
[BlackElo "1316"]
[Annotator "NA"]
[PlyCount "71"]
[EventDate "2019.07.11"]
[EventType "swiss"]
[EventCountry "CZE"]
[SourceTitle "playchess.com"]
[Source "ChessBase"]
[SourceQuality "1"]
[WhiteTeam "Poland"]
[BlackTeam "Czech Republic"]
[WhiteTeamCountry "POL"]
[BlackTeamCountry "CZE"]
[TimeControl "40/5400+30:1800+30"]

1. d4 {[%emt 0:00:00]} d5 {[%emt 0:00:00]} 2. c4 {[%emt 0:00:00]} e6 {[%emt 0:00:00]} 3. Nc3 {[%emt 0:00:00]} Nf6 {[%emt 0:00:00]} 4. cxd5 {[%emt 0:00:00]} exd5 {[%emt 0:00:09]} 5. Bg5 {[%emt 0:00:03]} c6 {[%emt 0:00:49]} 6. e3 {[%emt 0:00:19]} Be7 {[%emt 0:00:49]} 7. Bd3 {[%emt 0:00:21]} Nbd7 {[%emt 0:01:00]} 8. Nge2 {[%emt 0:01:19]} Nh5 {[%emt 0:02:26]} 9. Bxe7 {[%emt 0:01:06]} Qxe7 {[%emt 0:00:09]} 10. O-O {[%emt 0:00:27]} O-O {[%emt 0:02:49]} 11. Qd2 {[%emt 0:04:29]} Re8 {[%emt 0:09:46]} 12. Rae1 {[%emt 0:01:28]} Qg5 {[%emt 0:16:35]} 13. Nf4 {[%emt 0:11:40]} Ndf6 {[%emt 0:07:03]} 14. Bb1 {[%emt 0:10:59]} Bd7 {[%emt 0:13:52]} 15. Nce2 {[%emt 0:02:45]} Nxf4 {[%emt 0:07:48]} 16. Nxf4 {[%emt 0:00:11]} Ne4 {[%emt 0:02:38]} 17. Bxe4 {[%emt 0:00:18]} dxe4 {[%emt 0:03:08]} 18. f3 {[%emt 0:05:31]} exf3 {[%emt 0:02:17]} 19. Rxf3 {[%emt 0:00:22]} Bf5 {[%emt 0:06:19]} 20. Rg3 {[%emt 0:01:21]} Qh4 {[%emt 0:02:09]} 21. Qc3 {[%emt 0:04:43]} g6 {[%emt 0:03:31]} 22. Rf1 {[%emt 0:01:43]} Be4 {[%emt 0:02:43]} 23. Qb3 {[%emt 0:06:46]} Re7 24. Nd3 {[%emt 0:02:40]} Bxd3 {[%emt 0:03:21]} 25. Qxd3 {[%emt 0:00:02]} Qe4 {[%emt 0:00:43]} 26. Qb3 {[%emt 0:01:26]} Qd5 {[%emt 0:01:38]} 27. Qa3 {[%emt 0:06:05]} Rae8 {[%emt 0:03:50]} 28. Rgf3 {[%emt 0:00:11]} a6 {[%emt 0:02:02]} 29. h4 {[%emt 0:05:50]} h5 {[%emt 0:02:19]} 30. Qd3 {[%emt 0:02:17]} Qxa2 {[%emt 0:01:08]} 31. b3 {[%emt 0:00:55]} Qa5 {[%emt 0:00:46]} 32. Rxf7 {[%emt 0:00:57]} Rxf7 {[%emt 0:01:57]} 33. Qxg6+ {[%emt 0:00:09]} Kh8 {[%emt 0:00:40]} 34. Qxf7 {[%emt 0:00:26]} Rg8 {[%emt 0:00:54]} 35. Qe6 {[%emt 0:01:02]} Qc7 {[%emt 0:01:40]} 36. Rf7 1-0

[Event "EYTCC U12 Girls 2019"]
[Site "Pardubice"]
[Date "2019.07.11"]
[Round "1.22"]
[White "Janouskova, Adela"]
[Black "Szopa, Emilia"]
[Result "0-1"]
[ECO "B22"]
[WhiteElo "1200"]
[BlackElo "1415"]
[Annotator "NA"]
[PlyCount "73"]
[EventDate "2019.07.11"]
[EventType "swiss"]
[EventCountry "CZE"]
[SourceTitle "playchess.com"]
[Source "ChessBase"]
[SourceQuality "1"]
[WhiteTeam "Czech Republic"]
[BlackTeam "Poland"]
[WhiteTeamCountry "CZE"]
[BlackTeamCountry "POL"]
[TimeControl "40/5400+30:1800+30"]

1. e4 {[%emt 0:00:00]} c5 {[%emt 0:00:00]} 2. c3 {[%emt 0:00:00]} d5 {[%emt 0:00:17]} 3. exd5 {[%emt 0:00:17]} Qxd5 {[%emt 0:00:18]} 4. d4 {[%emt 0:00:54]} e5 {[%emt 0:00:36]} 5. dxe5 {[%emt 0:01:58]} Qxd1+ {[%emt 0:00:13]} 6. Kxd1 {[%emt 0:00:18]} Nc6 {[%emt 0:01:21]} 7. Bf4 {[%emt 0:03:26]} Bg4+ {[%emt 0:02:19]} 8. Be2 {[%emt 0:04:20]} O-O-O+ {[%emt 0:02:07]} 9. Nd2 {[%emt 0:02:00]} Bxe2+ {[%emt 0:04:52]} 10. Nxe2 {[%emt 0:03:09]} Nge7 {[%emt 0:02:09]} 11. Bg3 {[%emt 0:03:34]} Ng6 {[%emt 0:03:15]} 12. f4 {[%emt 0:02:34]} Be7 {[%emt 0:03:52]} 13. Kc2 {[%emt 0:01:42]} Rhe8 {[%emt 0:05:11]} 14. Rhe1 {[%emt 0:01:46]} Bh4 {[%emt 0:07:18]} 15. Bxh4 {[%emt 0:01:57]} Nxh4 {[%emt 0:00:16]} 16. g3 {[%emt 0:06:11]} Ng2 {[%emt 0:04:41]} 17. Rg1 {[%emt 0:01:29]} Ne3+ {[%emt 0:00:14]} 18. Kc1 {[%emt 0:00:15]} f6 {[%emt 0:01:59]} 19. exf6 {[%emt 0:10:01]} Ng4 {[%emt 0:02:09]} 20. Rg2 {[%emt 0:02:28]} Nxf6 {[%emt 0:02:50]} 21. b3 {[%emt 0:07:39]} Nd5 {[%emt 0:06:52]} 22. Nc4 {[%emt 0:06:44]} b5 {[%emt 0:01:39]} 23. Na3 {[%emt 0:06:27]} Ne3 {[%emt 0:01:35]} 24. Rg1 {[%emt 0:07:01]} a6 {[%emt 0:01:52]} 25. Nb1 {[%emt 0:04:10]} Rd7 {[%emt 0:08:09]} 26. Na3 {[%emt 0:04:35]} Re6 {[%emt 0:06:04]} 27. Nb1 {[%emt 0:03:59]} Red6 {[%emt 0:00:35]} 28. Kb2 {[%emt 0:03:19]} Rh6 {[%emt 0:04:41]} 29. h4 {[%emt 0:06:52]} Re6 {[%emt 0:01:39]} 30. Kc1 {[%emt 0:02:30]} Red6 {[%emt 0:01:50]} 31. Re1 {[%emt 0:02:04]} b4 {[%emt 0:03:29]} 32. a3 {[%emt 0:01:40]} Rd1+ {[%emt 0:01:36]} 33. Rxd1 {[%emt 0:00:22]} Rxd1+ {[%emt 0:00:13]} 34. Kb2 {[%emt 0:00:05]} Re1 {[%emt 0:00:45]} 35. Nc1 {[%emt 0:00:47]} a5 {[%emt 0:00:58]} 36. axb4 {[%emt 0:00:23]} cxb4 {[%emt 0:00:58]} 37. cxb4 {[%emt 0:00:00]} 0-1

[Event "EYTCC U12 Girls 2019"]
[Site "Pardubice"]
[Date "2019.07.11"]
[Round "1.23"]
[White "Mikheeva, Galina"]
[Black "Buyuk, Ecrin Efsa"]
[Result "1-0"]
[ECO "B12"]
[WhiteElo "1792"]
[BlackElo "1592"]
[Annotator "NA"]
[PlyCount "131"]
[EventDate "2019.07.11"]
[EventType "swiss"]
[EventCountry "CZE"]
[SourceTitle "playchess.com"]
[Source "ChessBase"]
[SourceQuality "1"]
[WhiteTeam "Russia"]
[BlackTeam "Turkey"]
[WhiteTeamCountry "RUS"]
[BlackTeamCountry "TUR"]
[TimeControl "40/5400+30:1800+30"]

1. e4 {[%emt 0:00:00]} c6 {[%emt 0:00:00]} 2. d4 {[%emt 0:00:00]} d5 {[%emt 0:00:00]} 3. e5 {[%emt 0:00:00]} Bf5 {[%emt 0:00:14]} 4. h4 {[%emt 0:00:28]} h6 {[%emt 0:01:00]} 5. g4 {[%emt 0:00:11]} Bd7 {[%emt 0:00:41]} 6. h5 {[%emt 0:00:44]} e6 {[%emt 0:03:02]} 7. f4 {[%emt 0:00:50]} c5 {[%emt 0:04:21]} 8. c3 {[%emt 0:00:40]} Nc6 {[%emt 0:01:23]} 9. Nf3 {[%emt 0:00:23]} cxd4 {[%emt 0:06:19]} 10. cxd4 {[%emt 0:00:26]} Rc8 {[%emt 0:03:26]} 11. Nc3 {[%emt 0:01:10]} Bb4 {[%emt 0:05:32]} 12. Bd2 {[%emt 0:04:31]} a6 {[%emt 0:08:56]} 13. Qb3 {[%emt 0:08:28]} Qb6 {[%emt 0:16:40]} 14. a3 {[%emt 0:01:47]} Bc5 {[%emt 0:03:52]} 15. Qxb6 {[%emt 0:00:49]} Bxb6 {[%emt 0:00:02]} 16. Be3 {[%emt 0:04:43]} Na5 {[%emt 0:03:12]} 17. Nd2 {[%emt 0:02:09]} Ne7 {[%emt 0:06:55]} 18. Rc1 {[%emt 0:06:35]} O-O {[%emt 0:10:51]} 19. b4 {[%emt 0:03:28]} Nac6 {[%emt 0:08:00]} 20. Nb3 {[%emt 0:01:22]} Na7 {[%emt 0:06:41]} 21. Kd2 {[%emt 0:03:21]} Rc6 {[%emt 0:04:30]} 22. Bd3 {[%emt 0:06:48]} Rfc8 {[%emt 0:01:22]} 23. Rhf1 {[%emt 0:07:12]} Nb5 {[%emt 0:01:34]} 24. Nxb5 {[%emt 0:07:57]} axb5 {[%emt 0:00:02]} 25. Rxc6 {[%emt 0:03:45]} bxc6 {[%emt 0:02:18]} 26. Kc2 {[%emt 0:01:46]} Ra8 {[%emt 0:00:15]} 27. Kb2 {[%emt 0:00:05]} Bd8 {[%emt 0:01:17]} 28. Nc5 {[%emt 0:00:49]} Be8 {[%emt 0:00:16]} 29. f5 {[%emt 0:01:04]} exf5 {[%emt 0:00:04]} 30. gxf5 {[%emt 0:01:38]} Nc8 {[%emt 0:01:32]} 31. f6 {[%emt 0:01:23]} Nb6 {[%emt 0:00:21]} 32. fxg7 {[%emt 0:00:38]} Kxg7 {[%emt 0:00:05]} 33. Rg1+ {[%emt 0:00:43]} Bg5 {[%emt 0:00:09]} 34. Bxg5 {[%emt 0:01:04]} hxg5 {[%emt 0:00:05]} 35. Rxg5+ {[%emt 0:00:11]} Kh6 {[%emt 0:00:08]} 36. Rf5 {[%emt 0:02:00]} Nc4+ {[%emt 0:00:23]} 37. Bxc4 {[%emt 0:00:23]} dxc4 {[%emt 0:00:06]} 38. Ne4 {[%emt 0:01:17]} Rd8 {[%emt 0:01:01]} 39. Nd6 {[%emt 0:00:32]} Rb8 {[%emt 0:02:15]} 40. Nxf7+ {[%emt 0:07:12]} Bxf7 {[%emt 0:00:05]} 41. Rxf7 {[%emt 0:30:04]} Kxh5 {[%emt 0:30:10]} 42. Rc7 {[%emt 0:02:26]} Rd8 {[%emt 0:01:16]} 43. Kc3 {[%emt 0:02:03]} Ra8 {[%emt 0:00:08]} 44. Rxc6 {[%emt 0:00:29]} Rxa3+ {[%emt 0:00:05]} 45. Kc2 {[%emt 0:00:27]} Rb3 {[%emt 0:01:18]} 46. d5 {[%emt 0:00:35]} Re3 {[%emt 0:00:32]} 47. d6 {[%emt 0:01:21]} Rd3 {[%emt 0:00:31]} 48. e6 {[%emt 0:01:58]} Kg6 {[%emt 0:00:29]} 49. d7 {[%emt 0:01:23]} Kf6 {[%emt 0:00:31]} 50. Rc8 {[%emt 0:00:08]} Kxe6 {[%emt 0:00:13]} 51. d8=Q {[%emt 0:00:10]} Rxd8 {[%emt 0:00:00]} 52. Rxd8 {[%emt 0:00:00]} Ke7 {[%emt 0:00:00]} 53. Rb8 {[%emt 0:00:00]} Kd7 {[%emt 0:00:00]} 54. Rxb5 {[%emt 0:00:00]} Kc6 {[%emt 0:00:00]} 55. Rc5+ {[%emt 0:00:00]} Kb6 {[%emt 0:00:00]} 56. Rxc4 {[%emt 0:00:00]} Kb5 {[%emt 0:00:00]} 57. Kb3 {[%emt 0:00:00]} Kb6 {[%emt 0:00:00]} 58. Ka4 {[%emt 0:00:00]} Ka6 {[%emt 0:00:00]} 59. b5+ {[%emt 0:00:00]} Kb6 {[%emt 0:00:00]} 60. Rc6+ {[%emt 0:00:00]} Ka7 {[%emt 0:00:00]} 61. b6+ {[%emt 0:00:00]} Kb7 {[%emt 0:00:00]} 62. Kb5 {[%emt 0:00:00]} Kb8 {[%emt 0:00:00]} 63. Rh6 {[%emt 0:00:00]} Kb7 {[%emt 0:00:00]} 64. Rh7+ {[%emt 0:00:00]} Kb8 {[%emt 0:00:00]} 65. Kc6 {[%emt 0:00:00]} Ka8 {[%emt 0:00:00]} 66. Rh8# {[%emt 0:00:00]} 1-0